[Event "Late-Titled-Tuesday-Blitz-February-27-2024"]
[Site "Chess.com"]
[Date "2024.02.27"]
[Round "6"]
[White "VinzentSpitzl"]
[Black "wqws"]
[Result "0-1"]
[WhiteElo "2527"]
[BlackElo "2687"]
[TimeControl "180+1"]
[EndTime "15:05:50 PST"]
[Termination "wqws won by resignation"]

1. d4 {[%clk 0:02:59.3]} 1... Nf6 {[%clk 0:02:53.3]} 2. Nf3 {[%clk 0:02:58.9]}
2... g6 {[%clk 0:02:53.2]} 3. g3 {[%clk 0:02:56.2]} 3... Bg7 {[%clk 0:02:53.5]}
4. Bg2 {[%clk 0:02:56.7]} 4... O-O {[%clk 0:02:54.4]} 5. b3 {[%clk 0:02:57]}
5... a5 {[%clk 0:02:53]} 6. Bb2 {[%clk 0:02:50.9]} 6... a4 {[%clk 0:02:44.6]} 7.
O-O {[%clk 0:02:50.7]} 7... b6 {[%clk 0:02:42.1]} 8. c4 {[%clk 0:02:48.7]} 8...
Bb7 {[%clk 0:02:37.5]} 9. Nbd2 {[%clk 0:02:45.9]} 9... c5 {[%clk 0:02:28.2]} 10.
Qc2 {[%clk 0:02:40.5]} 10... Nc6 {[%clk 0:02:17.5]} 11. Rfe1 {[%clk 0:02:33]}
11... Nb4 {[%clk 0:02:15.6]} 12. Qc1 {[%clk 0:02:33]} 12... a3 {[%clk
0:01:42.4]} 13. Bc3 {[%clk 0:02:13.8]} 13... Ne4 {[%clk 0:01:22.6]} 14. Nxe4
{[%clk 0:02:09.7]} 14... Bxe4 {[%clk 0:01:22]} 15. Bxb4 {[%clk 0:02:08.1]} 15...
cxb4 {[%clk 0:01:21.9]} 16. Qe3 {[%clk 0:02:05.8]} 16... f5 {[%clk 0:01:17.5]}
17. Ne5 {[%clk 0:01:48.8]} 17... Bxg2 {[%clk 0:00:59.6]} 18. Kxg2 {[%clk
0:01:46.8]} 18... Qc7 {[%clk 0:00:46.9]} 19. f4 {[%clk 0:01:37.9]} 19... Qb7+
{[%clk 0:00:36.1]} 20. Qf3 {[%clk 0:01:33.6]} 20... Rab8 {[%clk 0:00:24.8]} 21.
Rad1 {[%clk 0:01:28.3]} 21... Rfc8 {[%clk 0:00:21.9]} 22. e4 {[%clk 0:01:09.6]}
22... d6 {[%clk 0:00:18]} 23. Nd3 {[%clk 0:01:03.3]} 23... b5 {[%clk 0:00:16]}
24. c5 {[%clk 0:00:58.4]} 24... Bxd4 {[%clk 0:00:15.3]} 25. cxd6 {[%clk
0:00:58]} 25... Rc2+ {[%clk 0:00:14.5]} 26. Kh3 {[%clk 0:00:58.3]} 26... Qd7
{[%clk 0:00:11.1]} 27. Nxb4 {[%clk 0:00:53.7]} 27... fxe4+ {[%clk 0:00:10.8]}
28. Qg4 {[%clk 0:00:51]} 28... Rxh2+ {[%clk 0:00:10.9]} 29. Kxh2 {[%clk
0:00:51.5]} 29... Qxg4 {[%clk 0:00:11.1]} 30. Rxd4 {[%clk 0:00:52.1]} 30... exd6
{[%clk 0:00:08.9]} 31. Nd5 {[%clk 0:00:50.9]} 31... Kg7 {[%clk 0:00:06.4]} 32.
Rdxe4 {[%clk 0:00:50.2]} 32... Rc8 {[%clk 0:00:06.6]} 33. Re7+ {[%clk
0:00:46.1]} 33... Kf8 {[%clk 0:00:06.8]} 34. R1e2 {[%clk 0:00:41.7]} 34... Qh5+
{[%clk 0:00:06.2]} 35. Kg1 {[%clk 0:00:37]} 35... Qxd5 {[%clk 0:00:07.1]} 36.
Kf2 {[%clk 0:00:35.4]} 36... Rc2 {[%clk 0:00:05.5]} 37. Re8+ {[%clk 0:00:34.4]}
37... Kf7 {[%clk 0:00:05.9]} 38. Re7+ {[%clk 0:00:34.9]} 38... Kf6 {[%clk
0:00:06.2]} 39. Re3 {[%clk 0:00:32.3]} 39... Rxe2+ {[%clk 0:00:05.8]} 40. Rxe2
{[%clk 0:00:33.2]} 40... Qd4+ {[%clk 0:00:06]} 41. Kf3 {[%clk 0:00:33.2]} 41...
d5 {[%clk 0:00:06.5]} 0-1

[Event "Late-Titled-Tuesday-Blitz-February-27-2024"]
[Site "Chess.com"]
[Date "2024.02.27"]
[Round "6"]
[White "Zhigalko_Sergei"]
[Black "Djager97"]
[Result "1-0"]
[WhiteElo "2900"]
[BlackElo "2638"]
[TimeControl "180+1"]
[EndTime "15:05:56 PST"]
[Termination "Zhigalko_Sergei won on time"]

1. e4 {[%clk 0:03:00.9]} 1... e6 {[%clk 0:02:59]} 2. d4 {[%clk 0:03:01.1]} 2...
d5 {[%clk 0:02:59.9]} 3. e5 {[%clk 0:03:01.8]} 3... c5 {[%clk 0:02:59.9]} 4. c3
{[%clk 0:03:02.5]} 4... Qb6 {[%clk 0:03:00.5]} 5. Nf3 {[%clk 0:03:03.2]} 5...
Nc6 {[%clk 0:03:01.1]} 6. Bd3 {[%clk 0:03:01.9]} 6... cxd4 {[%clk 0:03:00.8]} 7.
O-O {[%clk 0:03:02.2]} 7... Bd7 {[%clk 0:02:59]} 8. Re1 {[%clk 0:03:02.3]} 8...
Nge7 {[%clk 0:02:47.2]} 9. h4 {[%clk 0:03:02]} 9... g6 {[%clk 0:02:41.6]} 10. h5
{[%clk 0:02:37.7]} 10... Nf5 {[%clk 0:02:16.8]} 11. a3 {[%clk 0:01:34.1]} 11...
Be7 {[%clk 0:01:53.9]} 12. b4 {[%clk 0:01:30.7]} 12... O-O-O {[%clk 0:01:24.7]}
13. h6 {[%clk 0:01:26.1]} 13... Kb8 {[%clk 0:01:22.1]} 14. Bg5 {[%clk
0:01:19.8]} 14... Rdf8 {[%clk 0:00:55.1]} 15. Bxe7 {[%clk 0:00:51.8]} 15...
Ncxe7 {[%clk 0:00:54.6]} 16. Qd2 {[%clk 0:00:51.2]} 16... Nc6 {[%clk 0:00:25]}
17. c4 {[%clk 0:00:29.2]} 17... dxc4 {[%clk 0:00:23.1]} 18. Bxc4 {[%clk
0:00:30.1]} 18... Rc8 {[%clk 0:00:17.7]} 19. Bd3 {[%clk 0:00:30.5]} 19... Nce7
{[%clk 0:00:16.4]} 20. Qf4 {[%clk 0:00:13.6]} 20... Bc6 {[%clk 0:00:16.2]} 21.
Ng5 {[%clk 0:00:08]} 21... Nd5 {[%clk 0:00:13]} 22. Qh2 {[%clk 0:00:08.2]} 22...
Qc7 {[%clk 0:00:11.2]} 23. Nd2 {[%clk 0:00:08.3]} 23... Qe7 {[%clk 0:00:10.4]}
24. Nde4 {[%clk 0:00:07.1]} 24... Ka8 {[%clk 0:00:08.4]} 25. Rac1 {[%clk
0:00:06]} 25... Ba4 {[%clk 0:00:06.6]} 26. Rxc8+ {[%clk 0:00:03.2]} 26... Rxc8
{[%clk 0:00:06.3]} 27. Nxh7 {[%clk 0:00:03.8]} 27... Nc3 {[%clk 0:00:02.6]} 28.
Neg5 {[%clk 0:00:03.8]} 28... a5 {[%clk 0:00:01.6]} 29. Nf6 {[%clk 0:00:04.1]}
29... axb4 {[%clk 0:00:01.8]} 30. axb4 {[%clk 0:00:04.8]} 30... Qxb4 {[%clk
0:00:02.1]} 31. Qf4 {[%clk 0:00:03.3]} 31... Nd5 {[%clk 0:00:02.3]} 32. Qe4
{[%clk 0:00:02.6]} 32... Nfe3 {[%clk 0:00:01.7]} 33. Ra1 {[%clk 0:00:01.7]} 1-0

[Event "Late-Titled-Tuesday-Blitz-February-27-2024"]
[Site "Chess.com"]
[Date "2024.02.27"]
[Round "6"]
[White "1977Ivan"]
[Black "jcibarra"]
[Result "0-1"]
[WhiteElo "2743"]
[BlackElo "2935"]
[TimeControl "180+1"]
[EndTime "15:05:57 PST"]
[Termination "jcibarra won on time"]

1. d4 {[%clk 0:03:00.9]} 1... Nf6 {[%clk 0:02:59.9]} 2. Nf3 {[%clk 0:03:00.9]}
2... g6 {[%clk 0:02:59.9]} 3. Nbd2 {[%clk 0:02:59.9]} 3... Bg7 {[%clk
0:02:58.7]} 4. e4 {[%clk 0:02:59.8]} 4... d6 {[%clk 0:02:59.4]} 5. Bd3 {[%clk
0:02:59.6]} 5... O-O {[%clk 0:03:00.1]} 6. O-O {[%clk 0:02:59.8]} 6... Nbd7
{[%clk 0:02:56.9]} 7. Re1 {[%clk 0:02:56.3]} 7... e5 {[%clk 0:02:57.3]} 8. c3
{[%clk 0:02:55]} 8... b6 {[%clk 0:02:57.6]} 9. a4 {[%clk 0:02:53.3]} 9... a5
{[%clk 0:02:57.9]} 10. Nf1 {[%clk 0:02:47.4]} 10... Bb7 {[%clk 0:02:58.2]} 11.
Ng3 {[%clk 0:02:47.3]} 11... Re8 {[%clk 0:02:58.3]} 12. h3 {[%clk 0:02:44]}
12... Qe7 {[%clk 0:02:57.6]} 13. Bg5 {[%clk 0:02:40.4]} 13... Qf8 {[%clk
0:02:57.4]} 14. Qc1 {[%clk 0:02:24]} 14... h6 {[%clk 0:02:55.9]} 15. Bd2 {[%clk
0:02:22.4]} 15... Kh7 {[%clk 0:02:56.4]} 16. Nh4 {[%clk 0:02:14.5]} 16... Ng8
{[%clk 0:02:51]} 17. d5 {[%clk 0:01:46.7]} 17... Qe7 {[%clk 0:02:38.2]} 18. Nf3
{[%clk 0:01:44]} 18... Nc5 {[%clk 0:02:35]} 19. Bc2 {[%clk 0:01:43.5]} 19... c6
{[%clk 0:02:27]} 20. b4 {[%clk 0:01:38.3]} 20... Nd7 {[%clk 0:02:26.9]} 21. dxc6
{[%clk 0:01:36]} 21... Bxc6 {[%clk 0:02:27]} 22. Bb3 {[%clk 0:01:35.8]} 22...
Rac8 {[%clk 0:02:23.6]} 23. Qd1 {[%clk 0:01:30]} 23... Ngf6 {[%clk 0:02:19.7]}
24. h4 {[%clk 0:01:19.1]} 24... d5 {[%clk 0:02:10.4]} 25. exd5 {[%clk
0:01:18.6]} 25... Bxd5 {[%clk 0:02:10.1]} 26. h5 {[%clk 0:01:10.5]} 26... Qe6
{[%clk 0:02:01.2]} 27. hxg6+ {[%clk 0:01:08.6]} 27... fxg6 {[%clk 0:02:02.1]}
28. Bc2 {[%clk 0:00:59.9]} 28... e4 {[%clk 0:01:47.5]} 29. Nd4 {[%clk
0:00:58.4]} 29... Qf7 {[%clk 0:01:48.2]} 30. Nb5 {[%clk 0:00:54.7]} 30... Rc6
{[%clk 0:01:45.3]} 31. Bf4 {[%clk 0:00:50.9]} 31... Re7 {[%clk 0:00:40.4]} 32.
Nd6 {[%clk 0:00:46.3]} 32... Qf8 {[%clk 0:00:37.7]} 33. Ngxe4 {[%clk 0:00:34.1]}
33... Nxe4 {[%clk 0:00:36.4]} 34. Qxd5 {[%clk 0:00:19.9]} 34... Qxf4 {[%clk
0:00:20.4]} 35. Nxe4 {[%clk 0:00:19.7]} 35... Rce6 {[%clk 0:00:21]} 36. g3
{[%clk 0:00:17.8]} 36... Qf5 {[%clk 0:00:17.6]} 37. Qd3 {[%clk 0:00:05.7]} 37...
Ne5 {[%clk 0:00:15.8]} 38. Qe2 {[%clk 0:00:04.8]} 38... Nf3+ {[%clk 0:00:16.1]}
39. Kg2 {[%clk 0:00:05.2]} 39... Nxe1+ {[%clk 0:00:16.7]} 40. Rxe1 {[%clk
0:00:05.6]} 40... Bxc3 {[%clk 0:00:13.8]} 41. g4 {[%clk 0:00:02.1]} 41... Qf4
{[%clk 0:00:13.3]} 0-1

[Event "Late-Titled-Tuesday-Blitz-February-27-2024"]
[Site "Chess.com"]
[Date "2024.02.27"]
[Round "6"]
[White "Romadk"]
[Black "BebeBonito2022"]
[Result "1/2-1/2"]
[WhiteElo "2482"]
[BlackElo "2320"]
[TimeControl "180+1"]
[EndTime "15:06:01 PST"]
[Termination "Game drawn by repetition"]

1. d4 {[%clk 0:02:53.7]} 1... Nf6 {[%clk 0:02:59.4]} 2. Nf3 {[%clk 0:02:53.6]}
2... d5 {[%clk 0:02:59.3]} 3. g3 {[%clk 0:02:53.6]} 3... e6 {[%clk 0:02:56.2]}
4. Bg2 {[%clk 0:02:54]} 4... b5 {[%clk 0:02:56.4]} 5. Qd3 {[%clk 0:02:50.7]}
5... a6 {[%clk 0:02:52.8]} 6. Bg5 {[%clk 0:02:49.8]} 6... Nbd7 {[%clk
0:02:48.3]} 7. a4 {[%clk 0:02:49.5]} 7... b4 {[%clk 0:02:46.1]} 8. c4 {[%clk
0:02:50.1]} 8... Bb7 {[%clk 0:02:32.3]} 9. Nbd2 {[%clk 0:02:41.3]} 9... Be7
{[%clk 0:02:26.3]} 10. O-O {[%clk 0:02:40.8]} 10... O-O {[%clk 0:02:23.5]} 11.
a5 {[%clk 0:02:39.8]} 11... c5 {[%clk 0:02:21.6]} 12. Ne5 {[%clk 0:02:32.4]}
12... dxc4 {[%clk 0:01:54.8]} 13. Ndxc4 {[%clk 0:02:19.3]} 13... Bxg2 {[%clk
0:01:54.6]} 14. Kxg2 {[%clk 0:02:20.2]} 14... Nxe5 {[%clk 0:01:22.7]} 15. dxe5
{[%clk 0:01:39.7]} 15... Qxd3 {[%clk 0:00:53]} 16. exd3 {[%clk 0:01:40.6]} 16...
Nd5 {[%clk 0:00:53.1]} 17. Bxe7 {[%clk 0:01:40.6]} 17... Nxe7 {[%clk 0:00:54]}
18. Rac1 {[%clk 0:01:32.8]} 18... Rfd8 {[%clk 0:00:39.1]} 19. Nd6 {[%clk
0:01:32.2]} 19... Nf5 {[%clk 0:00:39.7]} 20. Rxc5 {[%clk 0:01:19.8]} 20... Nxd6
{[%clk 0:00:38.4]} 21. exd6 {[%clk 0:01:20.7]} 21... Rxd6 {[%clk 0:00:38]} 22.
Rfc1 {[%clk 0:01:21.3]} 22... g6 {[%clk 0:00:34.3]} 23. R1c4 {[%clk 0:01:09.9]}
23... Rb8 {[%clk 0:00:22.8]} 24. Rc6 {[%clk 0:01:01.2]} 24... Rxd3 {[%clk
0:00:19.8]} 25. Rxa6 {[%clk 0:01:01.2]} 25... Rb3 {[%clk 0:00:20]} 26. Rb6
{[%clk 0:00:58.8]} 26... Ra8 {[%clk 0:00:16.2]} 27. a6 {[%clk 0:00:37.8]} 27...
Rxb2 {[%clk 0:00:15.5]} 28. Rc7 {[%clk 0:00:36.6]} 28... Ra2 {[%clk 0:00:15.4]}
29. Rbb7 {[%clk 0:00:32]} 29... R2xa6 {[%clk 0:00:12.2]} 30. Rxf7 {[%clk
0:00:31.9]} 30... b3 {[%clk 0:00:06.8]} 31. Rg7+ {[%clk 0:00:32.3]} 31... Kh8
{[%clk 0:00:06.9]} 32. Rxh7+ {[%clk 0:00:32.6]} 32... Kg8 {[%clk 0:00:07.4]} 33.
Rhg7+ {[%clk 0:00:32.9]} 33... Kh8 {[%clk 0:00:07.3]} 34. Rh7+ {[%clk
0:00:33.3]} 34... Kg8 {[%clk 0:00:07.8]} 35. Rbg7+ {[%clk 0:00:33.5]} 35... Kf8
{[%clk 0:00:07.8]} 36. Rf7+ {[%clk 0:00:16.2]} 36... Kg8 {[%clk 0:00:08.1]} 37.
Rhg7+ {[%clk 0:00:15.7]} 37... Kh8 {[%clk 0:00:08.5]} 38. Rb7 {[%clk 0:00:11.5]}
38... b2 {[%clk 0:00:06.8]} 39. Rh7+ {[%clk 0:00:11.4]} 39... Kg8 {[%clk
0:00:07.3]} 40. Rhg7+ {[%clk 0:00:11.7]} 40... Kh8 {[%clk 0:00:07.8]} 41. Rh7+
{[%clk 0:00:11.7]} 41... Kg8 {[%clk 0:00:08.2]} 42. Rhg7+ {[%clk 0:00:09.8]}
42... Kh8 {[%clk 0:00:08.7]} 1/2-1/2

[Event "Late-Titled-Tuesday-Blitz-February-27-2024"]
[Site "Chess.com"]
[Date "2024.02.27"]
[Round "6"]
[White "Casper"]
[Black "Bkmzzzzz"]
[Result "1/2-1/2"]
[WhiteElo "2517"]
[BlackElo "2407"]
[TimeControl "180+1"]
[EndTime "15:06:02 PST"]
[Termination "Game drawn by repetition"]

1. e4 {[%clk 0:03:00.9]} 1... d6 {[%clk 0:02:58.4]} 2. Nc3 {[%clk 0:02:59.6]}
2... Nf6 {[%clk 0:02:56.4]} 3. Bc4 {[%clk 0:02:59.8]} 3... e5 {[%clk 0:02:44.4]}
4. Nf3 {[%clk 0:02:59]} 4... Be7 {[%clk 0:02:45]} 5. d3 {[%clk 0:02:57.6]} 5...
O-O {[%clk 0:02:44.4]} 6. Bg5 {[%clk 0:02:57.2]} 6... c6 {[%clk 0:02:44.9]} 7.
Bb3 {[%clk 0:02:55.6]} 7... b5 {[%clk 0:02:44.7]} 8. a4 {[%clk 0:02:55]} 8... b4
{[%clk 0:02:45.1]} 9. Ne2 {[%clk 0:02:54.9]} 9... a5 {[%clk 0:02:45.7]} 10. Ng3
{[%clk 0:02:53.7]} 10... h6 {[%clk 0:02:17.7]} 11. Bxf6 {[%clk 0:02:51.6]} 11...
Bxf6 {[%clk 0:02:18.6]} 12. Nh5 {[%clk 0:02:52.1]} 12... Be7 {[%clk 0:02:17.1]}
13. Rg1 {[%clk 0:02:45.6]} 13... Bg4 {[%clk 0:02:07.1]} 14. Ng3 {[%clk
0:02:43.2]} 14... Nd7 {[%clk 0:01:50.3]} 15. h3 {[%clk 0:02:35]} 15... Be6
{[%clk 0:01:50.4]} 16. Nf5 {[%clk 0:02:33.9]} 16... Bxf5 {[%clk 0:01:33.6]} 17.
exf5 {[%clk 0:02:34.8]} 17... Nc5 {[%clk 0:01:33.9]} 18. g4 {[%clk 0:02:28.8]}
18... Nxb3 {[%clk 0:01:33]} 19. cxb3 {[%clk 0:02:29.7]} 19... Re8 {[%clk
0:01:06.7]} 20. Qd2 {[%clk 0:02:27.7]} 20... Bg5 {[%clk 0:00:54.6]} 21. Nxg5
{[%clk 0:02:27.5]} 21... hxg5 {[%clk 0:00:55.5]} 22. O-O-O {[%clk 0:02:26.5]}
22... d5 {[%clk 0:00:45.9]} 23. h4 {[%clk 0:02:25.8]} 23... gxh4 {[%clk
0:00:45.3]} 24. g5 {[%clk 0:02:26.7]} 24... f6 {[%clk 0:00:38.8]} 25. f3 {[%clk
0:02:10.9]} 25... c5 {[%clk 0:00:31.5]} 26. Rg4 {[%clk 0:01:57.9]} 26... Rc8
{[%clk 0:00:20.5]} 27. Rdg1 {[%clk 0:01:58.1]} 27... fxg5 {[%clk 0:00:18.4]} 28.
Qh2 {[%clk 0:01:56.9]} 28... c4 {[%clk 0:00:16.5]} 29. Rxg5 {[%clk 0:01:56.7]}
29... cxd3+ {[%clk 0:00:15]} 30. Kb1 {[%clk 0:01:56.6]} 30... Rc7 {[%clk
0:00:14.8]} 31. Qxh4 {[%clk 0:01:53.9]} 31... Qf6 {[%clk 0:00:15]} 32. Rh1
{[%clk 0:01:47.7]} 32... Kf7 {[%clk 0:00:14.4]} 33. Qh5+ {[%clk 0:01:42]} 33...
Ke7 {[%clk 0:00:14.7]} 34. Rg6 {[%clk 0:01:42.5]} 34... Qf7 {[%clk 0:00:14.9]}
35. Qg5+ {[%clk 0:01:43]} 35... Kd7 {[%clk 0:00:13.3]} 36. Rxg7 {[%clk 0:01:43]}
36... Qxg7 {[%clk 0:00:09.7]} 37. Qxg7+ {[%clk 0:01:43.9]} 37... Re7 {[%clk
0:00:10.5]} 38. f6 {[%clk 0:01:42.6]} 38... Rxg7 {[%clk 0:00:09.9]} 39. fxg7
{[%clk 0:01:43.5]} 39... Rc8 {[%clk 0:00:10]} 40. Rh8 {[%clk 0:01:44.1]} 40...
d2 {[%clk 0:00:08.4]} 41. Rxc8 {[%clk 0:01:43.7]} 41... d1=Q+ {[%clk 0:00:08.8]}
42. Ka2 {[%clk 0:01:44.3]} 42... Kxc8 {[%clk 0:00:04.6]} 43. g8=Q+ {[%clk
0:01:44.9]} 43... Kd7 {[%clk 0:00:05.2]} 44. Qf7+ {[%clk 0:01:42.8]} 44... Kd6
{[%clk 0:00:05.6]} 45. Qf6+ {[%clk 0:01:43.4]} 45... Kd7 {[%clk 0:00:05.8]} 46.
Qf7+ {[%clk 0:01:43.3]} 46... Kd6 {[%clk 0:00:05.7]} 47. Qa7 {[%clk 0:01:44]}
47... Qxf3 {[%clk 0:00:05.2]} 48. Qb6+ {[%clk 0:01:43]} 48... Kd7 {[%clk
0:00:04.8]} 49. Qb7+ {[%clk 0:01:43.4]} 49... Ke6 {[%clk 0:00:05.3]} 50. Qb6+
{[%clk 0:01:44.1]} 50... Kf5 {[%clk 0:00:05.8]} 51. Qxa5 {[%clk 0:01:44.9]}
51... e4 {[%clk 0:00:06.3]} 52. Qxd5+ {[%clk 0:01:44.6]} 52... Kf4 {[%clk
0:00:06.7]} 53. a5 {[%clk 0:01:44.4]} 53... Qd3 {[%clk 0:00:05.9]} 54. Qf7+
{[%clk 0:01:37.2]} 54... Ke3 {[%clk 0:00:06]} 55. Qe6 {[%clk 0:01:34.8]} 55...
Kf2 {[%clk 0:00:05.9]} 56. a6 {[%clk 0:01:34]} 56... e3 {[%clk 0:00:06.5]} 57.
a7 {[%clk 0:01:32.6]} 57... Qd8 {[%clk 0:00:04.7]} 58. Qf5+ {[%clk 0:01:31.2]}
58... Ke2 {[%clk 0:00:04.8]} 59. Qe4 {[%clk 0:01:29.7]} 59... Qa5+ {[%clk
0:00:03.8]} 60. Kb1 {[%clk 0:01:30.3]} 60... Qxa7 {[%clk 0:00:04.5]} 61. Qxb4
{[%clk 0:01:27.2]} 61... Qd7 {[%clk 0:00:04.6]} 62. Qc4+ {[%clk 0:01:23.7]}
62... Kf2 {[%clk 0:00:04.9]} 63. Qf4+ {[%clk 0:01:24.2]} 63... Ke2 {[%clk
0:00:04.8]} 64. b4 {[%clk 0:01:24.7]} 64... Qb5 {[%clk 0:00:04.4]} 65. Ka2
{[%clk 0:01:22.3]} 65... Kd2 {[%clk 0:00:04.3]} 66. Kb3 {[%clk 0:01:21.2]} 66...
Qd3+ {[%clk 0:00:04.5]} 67. Ka4 {[%clk 0:01:21.2]} 67... Qa6+ {[%clk 0:00:05.1]}
68. Kb3 {[%clk 0:01:21.8]} 68... Qd3+ {[%clk 0:00:05.6]} 69. Ka2 {[%clk
0:01:22.4]} 69... Qa6+ {[%clk 0:00:06.1]} 70. Kb1 {[%clk 0:01:22.2]} 70... Qd3+
{[%clk 0:00:06.2]} 71. Ka1 {[%clk 0:01:22.1]} 71... Qa6+ {[%clk 0:00:06.9]} 72.
Kb1 {[%clk 0:01:22.7]} 72... Qd3+ {[%clk 0:00:07.1]} 73. Ka2 {[%clk 0:01:23.3]}
73... Qa6+ {[%clk 0:00:07.6]} 74. Kb3 {[%clk 0:01:23.4]} 74... Qd3+ {[%clk
0:00:08.3]} 1/2-1/2

[Event "Late-Titled-Tuesday-Blitz-February-27-2024"]
[Site "Chess.com"]
[Date "2024.02.27"]
[Round "6"]
[White "Rawnsdale"]
[Black "Laico"]
[Result "1-0"]
[WhiteElo "2520"]
[BlackElo "2380"]
[TimeControl "180+1"]
[EndTime "15:06:08 PST"]
[Termination "Rawnsdale won on time"]

1. e4 {[%clk 0:03:00.9]} 1... e6 {[%clk 0:02:51.7]} 2. d4 {[%clk 0:03:00.7]}
2... d5 {[%clk 0:02:52.1]} 3. e5 {[%clk 0:03:01]} 3... c5 {[%clk 0:02:51.6]} 4.
c3 {[%clk 0:03:01.5]} 4... Nc6 {[%clk 0:02:52.1]} 5. Nf3 {[%clk 0:03:01.5]} 5...
Bd7 {[%clk 0:02:53]} 6. Bd3 {[%clk 0:03:01.5]} 6... Qb6 {[%clk 0:02:53.3]} 7.
dxc5 {[%clk 0:02:59.1]} 7... Bxc5 {[%clk 0:02:52.8]} 8. O-O {[%clk 0:02:59.3]}
8... a5 {[%clk 0:02:53.2]} 9. Nbd2 {[%clk 0:02:53.5]} 9... a4 {[%clk 0:02:51.8]}
10. c4 {[%clk 0:02:50.9]} 10... Nge7 {[%clk 0:02:50.6]} 11. cxd5 {[%clk
0:02:50]} 11... exd5 {[%clk 0:02:51.5]} 12. Qe2 {[%clk 0:02:44.1]} 12... Bf5
{[%clk 0:02:43.5]} 13. Bxf5 {[%clk 0:02:37.6]} 13... Nxf5 {[%clk 0:02:44.4]} 14.
e6 {[%clk 0:02:37.7]} 14... O-O {[%clk 0:02:42.1]} 15. exf7+ {[%clk 0:02:24.3]}
15... Rxf7 {[%clk 0:02:39.7]} 16. Ng5 {[%clk 0:02:20.3]} 16... Re7 {[%clk
0:02:37.5]} 17. Qg4 {[%clk 0:02:12.3]} 17... Rf8 {[%clk 0:02:16.6]} 18. Ndf3
{[%clk 0:02:06.2]} 18... h6 {[%clk 0:02:03.9]} 19. Nh3 {[%clk 0:01:57.3]} 19...
Re4 {[%clk 0:02:03.6]} 20. Bf4 {[%clk 0:01:45.4]} 20... Bd6 {[%clk 0:01:34.1]}
21. Rfe1 {[%clk 0:01:31.3]} 21... Qxb2 {[%clk 0:01:22.1]} 22. Rad1 {[%clk
0:01:18.6]} 22... Qxa2 {[%clk 0:01:11.2]} 23. Rxe4 {[%clk 0:01:12.6]} 23... dxe4
{[%clk 0:01:12.1]} 24. Bxd6 {[%clk 0:01:07.4]} 24... Nxd6 {[%clk 0:01:07.9]} 25.
Nh4 {[%clk 0:00:56.1]} 25... Ne5 {[%clk 0:00:58.6]} 26. Qg3 {[%clk 0:00:52.4]}
26... Qe2 {[%clk 0:00:52.3]} 27. Rf1 {[%clk 0:00:43]} 27... Nf5 {[%clk 0:00:35]}
28. Qxe5 {[%clk 0:00:29.2]} 28... Nxh4 {[%clk 0:00:34.5]} 29. Nf4 {[%clk
0:00:28.8]} 29... Qg4 {[%clk 0:00:33.8]} 30. Qe6+ {[%clk 0:00:20.2]} 30... Qxe6
{[%clk 0:00:30.9]} 31. Nxe6 {[%clk 0:00:21.1]} 31... Rc8 {[%clk 0:00:20.1]} 32.
h3 {[%clk 0:00:15.6]} 32... Rc4 {[%clk 0:00:16.8]} 33. Rb1 {[%clk 0:00:14.9]}
33... a3 {[%clk 0:00:14.4]} 34. Ra1 {[%clk 0:00:13.1]} 34... Ra4 {[%clk
0:00:12.3]} 35. Nc5 {[%clk 0:00:13.3]} 35... Ra7 {[%clk 0:00:09.6]} 36. Nxe4
{[%clk 0:00:12.8]} 36... Nf5 {[%clk 0:00:09.4]} 37. Nc3 {[%clk 0:00:11.5]} 37...
Nd4 {[%clk 0:00:09]} 38. Kf1 {[%clk 0:00:10.7]} 38... b5 {[%clk 0:00:09]} 39.
Na2 {[%clk 0:00:06.4]} 39... Rb7 {[%clk 0:00:03.3]} 40. Rb1 {[%clk 0:00:06.5]}
40... b4 {[%clk 0:00:03.1]} 41. Rxb4 {[%clk 0:00:05.4]} 41... Rxb4 {[%clk
0:00:02.6]} 42. Nxb4 {[%clk 0:00:06.3]} 42... Nb5 {[%clk 0:00:01.9]} 43. Na2
{[%clk 0:00:05.3]} 1-0